fUST/lending_fUST_20250514
["ID","MTS","AMOUNT","RATE_DAILY","PERIOD"]
[360956510,1747162246753,-277.94235228,0.00013698,2]
[360956511,1747162246766,-454.15,0.00013698,2]
[360956512,1747162246779,-412.35895453,0.00013698,2]
[360956513,1747162246792,-596.21,0.00013698,2]
[360956514,1747162246805,-500.0,0.00013698,2]
[360956515,1747162246817,-400.0,0.00013698,2]
[360956516,1747162246831,-1905.77,0.00013698,2]
[360956517,1747162246844,-400.0,0.00013698,2]
[360956518,1747162246856,-895.69,0.00013698,2]
[360956519,1747162246869,-1047.52,0.00013698,2]
[360956520,1747162246883,-400.0,0.00013698,2]
[360956522,1747162246896,-740.32,0.00013698,2]
[360956524,1747162246908,-400.0,0.00013698,2]
[360956527,1747162246923,-3158.76,0.00013698,2]
[360956528,1747162246936,-400.0,0.00013698,2]
[360956529,1747162246949,-2122.66,0.00013698,2]
[360956530,1747162246963,-793.38,0.00013698,2]
[360956531,1747162246976,-400.0,0.00013698,2]
[360956533,1747162246989,-400.0,0.00013698,2]
[360956535,1747162247002,-400.0,0.00013698,2]
[360956537,1747162247014,-1959.67,0.00013698,2]
[360956538,1747162247033,-400.0,0.00013698,2]
[360956539,1747162247047,-405.04,0.00013698,2]
[360956542,1747162247061,-1039.61,0.00013698,2]
[360956543,1747162247075,-400.0,0.00013698,2]
[360956544,1747162247089,-400.0,0.00013698,2]
[360956545,1747162247103,-400.0,0.00013698,2]
[360956546,1747162247116,-501.74,0.00013698,2]
[360956547,1747162247129,-602.14,0.00013698,2]
[360956548,1747162247143,-1410.34,0.00013698,2]
[360956549,1747162247156,-3306.55,0.00013698,2]
[360956550,1747162247171,-400.0,0.00013698,2]
[360956551,1747162247185,-988.29,0.00013698,2]
[360956552,1747162247198,-544.07,0.00013698,2]
[360956553,1747162247209,-478.47,0.00013698,2]
[360956554,1747162247220,-400.0,0.00013698,2]
[360956555,1747162247720,-400.0,0.00013698,2]
[360956556,1747162247742,-400.0,0.00013698,2]
[360956557,1747162247752,-400.0,0.00013698,2]
[360956558,1747162247763,-936.32,0.00013698,2]
[360956559,1747162247773,-400.0,0.00013698,2]
[360956560,1747162247783,-1000.0,0.00013698,2]
[360956561,1747162247792,-400.0,0.00013698,2]
[360956562,1747162247802,-1378.0,0.00013698,2]
[360956563,1747162247812,-400.0,0.00013698,2]
[360956564,1747162247821,-436.55,0.00013698,2]
[360956565,1747162247831,-400.0,0.00013698,2]
[360956566,1747162247841,-400.0,0.00013698,2]
[360956567,1747162247851,-2921.64,0.00013698,2]
[360956568,1747162247862,-2363.47,0.00013698,2]
[360956569,1747162247873,-544.16,0.00013698,2]
[360956570,1747162247885,-400.0,0.00013698,2]
[360956571,1747162247897,-400.0,0.00013698,2]
[360956572,1747162247907,-2882.99,0.00013698,2]
[360956573,1747162247918,-1800.83,0.00013698,2]
[360956574,1747162247928,-400.0,0.00013698,2]
[360956575,1747162247938,-1311.05,0.00013698,2]
[360956576,1747162247948,-205.11358862,0.00013698,2]
[360956577,1747162247958,-930.86,0.00013698,2]
[360956578,1747162247969,-469.27,0.00013698,2]
[360956579,1747162247979,-400.0,0.00013698,2]
[360956580,1747162247989,-400.0,0.00013698,2]
[360956581,1747162248000,-400.0,0.00013698,2]
[360956582,1747162248010,-449.25727335,0.00013698,2]
[360956583,1747162248529,-500.0,0.00013696,2]
[360956584,1747162248540,-173.52432151,0.00013696,2]
[360956585,1747162248551,-500.0,0.00013696,2]
[360956586,1747162248561,-500.0,0.00013696,2]
[360956587,1747162248571,-310.54889359,0.00013696,2]
[360956588,1747162248582,-500.0,0.00013696,2]
[360956589,1747162248592,-500.0,0.00013696,2]
[360956590,1747162248603,-500.0,0.00013696,2]
[360956591,1747162248613,-500.0,0.00013696,2]
[360956592,1747162248624,-207.01272665,0.00013698,2]
[360956593,1747162248636,-400.0,0.00013698,2]
[360956594,1747162248647,-195.42665667,0.00013698,2]
[360956595,1747162248660,-204.57334333,0.00013698,2]
[360956596,1747162248671,-400.0,0.00013698,2]
[360956597,1747162248682,-400.0,0.00013698,2]
[360956598,1747162248692,-177.11296765,0.00013698,2]
[360956599,1747162248703,-2203.31,0.00013698,2]
[360956600,1747162248714,-400.03,0.00013698,2]
[360956601,1747162248725,-3398.86,0.00013698,2]
[360956602,1747162248735,-853.24,0.00013698,2]
[360956603,1747162248746,-1027.26,0.00013698,2]
[360956604,1747162248756,-479.82,0.00013698,2]
[360956605,1747162248767,-512.86,0.00013698,2]
[360956606,1747162248777,-400.0,0.00013698,2]
[360956607,1747162248788,-3575.87,0.00013698,2]
[360956608,1747162248798,-400.0,0.00013698,2]
[360956609,1747162248809,-400.0,0.00013698,2]
[360956610,1747162248819,-425.66,0.00013698,2]
[360956611,1747162248829,-5666.09,0.00013698,2]
[360956612,1747162248840,-400.0,0.00013698,2]
[360956613,1747162248850,-712.01,0.00013698,2]
[360956614,1747162248860,-1372.98,0.00013698,2]
[360956615,1747162248870,-10999.36,0.00013698,2]
[360956616,1747162248882,-400.0,0.00013698,2]
[360956617,1747162248895,-255.63136343,0.00013698,2]
[360956618,1747162248924,-211.14863657,0.00013698,2]
[360956619,1747162248935,-610.99,0.00013698,2]
[360956620,1747162248945,-184.18658727,0.00013698,2]
[360956621,1747162248955,-400.0,0.00013698,2]
[360956622,1747162248968,-1655.68,0.00013698,2]
[360956623,1747162248978,-2127.53,0.00013698,2]
[360956624,1747162248989,-400.0,0.00013698,2]
[360956625,1747162249001,-400.0,0.00013698,2]
[360956626,1747162249011,-731.65,0.00013698,2]
[360956627,1747162249021,-400.0,0.00013698,2]
[360956628,1747162249032,-2245.32,0.00013698,2]
[360956629,1747162249042,-522.28,0.00013698,2]
[360956630,1747162249053,-579.52,0.00013698,2]
[360956631,1747162249063,-448.56,0.00013698,2]
[360956632,1747162249073,-157.61313786,0.00013698,2]
[360956633,1747162249083,-636.38,0.00013698,2]
[360956634,1747162249093,-400.0,0.00013698,2]
[360956635,1747162249104,-400.0,0.00013698,2]
[360956636,1747162249114,-400.0,0.00013698,2]
[360956637,1747162249124,-400.0,0.00013698,2]
[360956638,1747162249135,-400.0,0.00013698,2]
[360956639,1747162249145,-496.36,0.00013698,2]
[360956640,1747162249155,-410.97,0.00013698,2]
[360956641,1747162249165,-406.41,0.00013698,2]
[360956642,1747162249176,-2627.37,0.00013698,2]
[360956643,1747162249186,-400.0,0.00013698,2]
[360956644,1747162249196,-400.0,0.00013698,2]
[360956645,1747162249206,-1048.2,0.00013698,2]
[360956646,1747162249216,-400.0,0.00013698,2]
[360956647,1747162249227,-19523.53,0.00013698,2]
[360956648,1747162249237,-850.06,0.00013698,2]
[360956649,1747162249248,-400.0,0.00013698,2]
[360956650,1747162249259,-400.0,0.00013698,2]
[360956651,1747162249269,-400.0,0.00013698,2]
[360956652,1747162249280,-658.14,0.00013698,2]
[360956653,1747162249290,-2475.64,0.00013698,2]
[360956654,1747162249301,-400.0,0.00013698,2]
[360956655,1747162249311,-552.27,0.00013698,2]
[360956656,1747162249322,-433.95,0.00013698,2]
[360956657,1747162249332,-5197.84,0.00013698,2]
[360956658,1747162249343,-3153.89,0.00013698,2]
[360956659,1747162249353,-400.0,0.00013698,2]
[360956660,1747162249363,-669.54,0.00013698,2]
[360956661,1747162249374,-2135.26,0.00013698,2]
[360956662,1747162249384,-931.67,0.00013698,2]
[360956663,1747162249395,-705.16,0.00013698,2]
[360956664,1747162249405,-400.0,0.00013698,2]
[360956665,1747162249415,-1226.74,0.00013698,2]
[360956666,1747162249426,-400.0,0.00013698,2]
[360956667,1747162249437,-400.0,0.00013698,2]
[360956668,1747162249453,-4162.87,0.00013698,2]
[360956669,1747162249464,-1175.34,0.00013698,2]
[360956670,1747162249475,-1268.34,0.00013698,2]
[360956671,1747162249485,-825.92,0.00013698,2]
[360956672,1747162249495,-728.75,0.00013698,2]
[360956673,1747162249506,-400.0,0.00013698,2]
[360956674,1747162249516,-4738.75,0.00013698,2]
[360956675,1747162249527,-400.0,0.00013698,2]
[360956676,1747162249538,-499.42,0.00013698,2]
[360956677,1747162249549,-986.55,0.00013698,2]
[360956678,1747162249559,-400.0,0.00013698,2]
[360956679,1747162249569,-400.0,0.00013698,2]
[360956680,1747162249583,-560.31,0.00013698,2]
[360956681,1747162249594,-1157.92,0.00013698,2]
[360956682,1747162249605,-400.0,0.00013698,2]
[360956683,1747162249616,-400.0,0.00013698,2]
[360956684,1747162249627,-1916.4,0.00013698,2]
[360956685,1747162249638,-1476.69,0.00013698,2]
[360956686,1747162249649,-561.89,0.00013698,2]
[360956687,1747162249660,-400.0,0.00013698,2]
[360956688,1747162249672,-400.0,0.00013698,2]
[360956689,1747162249683,-1410.27,0.00013698,2]
[360956690,1747162249694,-562.56,0.00013698,2]
[360956691,1747162249705,-540.26,0.00013698,2]
[360956692,1747162249716,-442.99,0.00013698,2]
[360956693,1747162249727,-524.23,0.00013698,2]
[360956694,1747162249737,-428.52,0.00013698,2]
[360956695,1747162249748,-1079.45,0.00013698,2]
[360956696,1747162249762,-400.0,0.00013698,2]
[360956697,1747162249774,-402.33,0.00013698,2]
[360956698,1747162249785,-624.0,0.00013698,2]
[360956699,1747162249795,-1012.34,0.00013698,2]
[360956700,1747162249806,-1393.27,0.00013698,2]
[360956701,1747162249816,-561.46,0.00013698,2]
[360956702,1747162249826,-693.37,0.00013698,2]
[360956703,1747162249836,-2562.63,0.00013698,2]
[360956704,1747162249846,-245.24544836,0.00013698,2]
[360956705,1747162249857,-474.36,0.00013698,2]
[360956706,1747162249867,-400.0,0.00013698,2]
[360956707,1747162249878,-2490.15,0.00013698,2]
[360956708,1747162249891,-1937.31,0.00013698,2]
[360956709,1747162249902,-400.0,0.00013698,2]
[360956710,1747162249912,-400.0,0.00013698,2]
[360956711,1747162249923,-400.0,0.00013698,2]
[360956712,1747162249933,-1001.75,0.00013698,2]
[360956713,1747162249943,-4516.43,0.00013698,2]
[360956714,1747162249953,-3380.64,0.00013698,2]
[360956715,1747162249964,-400.0,0.00013698,2]
[360956716,1747162249974,-400.0,0.00013698,2]
[360956717,1747162249984,-3432.78,0.00013698,2]
[360956718,1747162249994,-400.0,0.00013698,2]
[360956719,1747162250004,-1069.48,0.00013698,2]
[360956720,1747162250014,-400.0,0.00013698,2]
[360956721,1747162250024,-866.45,0.00013698,2]
[360956722,1747162250035,-400.0,0.00013698,2]
[360956723,1747162250046,-400.0,0.00013698,2]
[360956724,1747162250056,-477.11,0.00013698,2]
[360956725,1747162250066,-400.0,0.00013698,2]
[360956726,1747162250076,-2529.22,0.00013698,2]
[360956727,1747162250087,-2749.3,0.00013698,2]
[360956728,1747162250097,-400.0,0.00013698,2]
[360956729,1747162250107,-1847.04,0.00013698,2]
[360956730,1747162250118,-400.0,0.00013698,2]
[360956731,1747162250128,-543.11,0.00013698,2]
[360956732,1747162250138,-420.35,0.00013698,2]
[360956733,1747162250148,-483.17,0.00013698,2]
[360956734,1747162250158,-846.42,0.00013698,2]
[360956735,1747162250168,-807.23,0.00013698,2]
[360956736,1747162250178,-400.0,0.00013698,2]
[360956737,1747162250188,-2111.87,0.00013698,2]
[360956738,1747162250198,-400.0,0.00013698,2]
[360956739,1747162250209,-3223.41,0.00013698,2]
[360956740,1747162250219,-4733.53,0.00013698,2]
[360956741,1747162250230,-1195.74,0.00013698,2]
[360956742,1747162250240,-400.0,0.00013698,2]
[360956743,1747162250250,-1345.56,0.00013698,2]
[360956744,1747162250260,-1440.06,0.00013698,2]
[360956745,1747162250270,-400.0,0.00013698,2]
[360956746,1747162250280,-400.0,0.00013698,2]
[360956747,1747162250290,-574.08,0.00013698,2]
[360956748,1747162250300,-4037.39,0.00013698,2]
[360956749,1747162250310,-1720.99,0.00013698,2]
[360956750,1747162250319,-2521.84,0.00013698,2]
[360956751,1747162250329,-500.0,0.00013698,2]
[360956752,1747162250340,-523.26,0.00013698,2]
[360956753,1747162250350,-400.0,0.00013698,2]
[360956754,1747162250360,-426.56,0.00013698,2]
[360956755,1747162250370,-400.0,0.00013698,2]
[360956756,1747162250380,-400.0,0.00013698,2]
[360956757,1747162250390,-617.77,0.00013698,2]
[360956758,1747162250400,-400.0,0.00013698,2]
[360956759,1747162250410,-3781.06,0.00013698,2]
[360956760,1747162250420,-400.0,0.00013698,2]
[360956761,1747162250430,-400.0,0.00013698,2]
[360956762,1747162250440,-589.28,0.00013698,2]
[360956763,1747162250451,-544.18,0.00013698,2]
[360956764,1747162250460,-1285.13,0.00013698,2]
[360956765,1747162250471,-617.45,0.00013698,2]
[360956766,1747162250482,-1312.48,0.00013698,2]
[360956767,1747162250492,-247.98667644,0.00013698,2]
[360956768,1747162250503,-400.0,0.00013698,2]
[360956769,1747162250514,-584.32,0.00013698,2]
[360956770,1747162250525,-7870.22,0.00013698,2]
[360956771,1747162250535,-400.0,0.00013698,2]
[360956772,1747162250546,-400.0,0.00013698,2]
[360956773,1747162250556,-400.0,0.00013698,2]
[360956774,1747162250567,-400.0,0.00013698,2]
[360956775,1747162250577,-999.35,0.00013698,2]
[360956776,1747162250588,-400.0,0.00013698,2]
[360956777,1747162250598,-400.0,0.00013698,2]
[360956778,1747162250609,-707.4,0.00013698,2]
[360956779,1747162250619,-400.0,0.00013698,2]
[360956780,1747162250630,-963.72,0.00013698,2]
[360956781,1747162250641,-400.0,0.00013698,2]
[360956782,1747162250651,-400.0,0.00013698,2]
[360956783,1747162250662,-2839.64,0.00013698,2]
[360956784,1747162250673,-400.0,0.00013698,2]
[360956785,1747162250683,-400.0,0.00013698,2]
[360956786,1747162250694,-1171.86,0.00013698,2]
[360956787,1747162250704,-3396.92,0.00013698,2]
[360956788,1747162250715,-1538.49,0.00013698,2]
[360956789,1747162250725,-400.0,0.00013698,2]
[360956790,1747162250735,-1479.95,0.00013698,2]
[360956791,1747162250746,-400.0,0.00013698,2]
[360956792,1747162250757,-400.0,0.00013698,2]
[360956793,1747162250767,-400.0,0.00013698,2]
[360956794,1747162250776,-2599.83,0.00013698,2]
[360956795,1747162250787,-1864.38,0.00013698,2]
[360956796,1747162250796,-2924.86,0.00013698,2]
[360956797,1747162250807,-400.0,0.00013698,2]
[360956798,1747162250817,-400.0,0.00013698,2]
[360956799,1747162250827,-480.24,0.00013698,2]
[360956800,1747162250836,-584.84,0.00013698,2]
[360956801,1747162250847,-1378.67,0.00013698,2]
[360956802,1747162250857,-400.0,0.00013698,2]
[360956803,1747162251058,-400.0,0.00013698,2]
[360956804,1747162251085,-4329.5,0.00013698,2]
[360956805,1747162251096,-400.0,0.00013698,2]
[360956806,1747162251106,-811.41,0.00013698,2]
[360956807,1747162251116,-576.68,0.00013698,2]
[360956808,1747162251126,-9583.59,0.00013698,2]
[360956809,1747162251135,-2229.81,0.00013698,2]
[360956810,1747162251145,-802.94,0.00013698,2]
[360956811,1747162251156,-1553.87,0.00013698,2]
[360956812,1747162251166,-400.0,0.00013698,2]
[360956813,1747162251176,-17443.54,0.00013698,2]
[360956814,1747162251186,-422.48,0.00013698,2]
[360956815,1747162251196,-436.22,0.00013698,2]
[360956816,1747162251205,-400.0,0.00013698,2]
[360956817,1747162251215,-527.90908767,0.00013698,2]
[360956818,1747162251225,-400.0,0.00013698,2]
[360956819,1747162251235,-450.97,0.00013698,2]
[360956820,1747162251245,-1308.73,0.00013698,2]
[360956821,1747162251255,-1651.5,0.00013698,2]
[360956822,1747162251266,-10902.6,0.00013698,2]
[360956823,1747162251277,-531.72,0.00013698,2]
[360956824,1747162251287,-400.0,0.00013698,2]
[360956825,1747162251297,-400.0,0.00013698,2]
[360956826,1747162251307,-498.36,0.00013698,2]
[360956827,1747162251317,-400.0,0.00013698,2]
[360956828,1747162251328,-400.0,0.00013698,2]
[360956829,1747162251338,-496.71,0.00013698,2]
[360956830,1747162251348,-1706.46,0.00013698,2]
[360956831,1747162251358,-400.0,0.00013698,2]
[360956832,1747162251368,-400.0,0.00013698,2]
[360956833,1747162251378,-400.0,0.00013698,2]
[360956834,1747162251388,-952.05,0.00013698,2]
[360956835,1747162251398,-400.0,0.00013698,2]
[360956836,1747162251408,-1506.36,0.00013698,2]
[360956837,1747162251419,-400.0,0.00013698,2]
[360956838,1747162251430,-400.0,0.00013698,2]
[360956839,1747162251440,-400.0,0.00013698,2]
[360956840,1747162251450,-687.59,0.00013698,2]
[360956841,1747162251461,-400.0,0.00013698,2]
[360956842,1747162251471,-400.0,0.00013698,2]
[360956843,1747162251481,-904.030657,0.00013699,2]
[360956844,1747162251492,-966.204077,0.00013699,2]
[360956845,1747162251502,-151.0,0.000137,2]
[360956846,1747162251513,-179.9460162,0.00013821,2]
[360956847,1747162251524,-821.75331717,0.00013857,2]
[360956848,1747162251533,-546.0,0.00013862,2]
[360956849,1747162251543,-2237.0,0.00013862,2]
[360956850,1747162251553,-706.0,0.00013862,2]
[360956851,1747162251563,-150.0,0.00013862,2]
[360956852,1747162251574,-150.0,0.00013862,2]
[360956853,1747162251584,-150.0,0.00013862,2]
[360956854,1747162251594,-404.0,0.00013862,2]
[360956855,1747162251604,-404.0,0.00013862,2]
[360956856,1747162251614,-13206.80469747,0.000139,2]
[360956857,1747162251625,-1451.060944,0.00013934,2]
[360956858,1747162251635,-505.94,0.00013972,2]
[360956859,1747162251645,-400.0,0.00013972,2]
[360956860,1747162251657,-400.0,0.00013972,2]
[360956861,1747162251667,-400.0,0.00013972,2]
[360956862,1747162251678,-287.90871,0.00013972,2]
[360956863,1747162251689,-287.90871,0.00013972,2]
[360956864,1747162251699,-287.90871,0.00013972,2]
[360956865,1747162251709,-287.90871,0.00013972,2]
[360956866,1747162251719,-529.87,0.00013972,2]
[360956867,1747162251728,-400.0,0.00013972,2]
[360956868,1747162251738,-906.42,0.00013972,2]
[360956869,1747162251748,-400.0,0.00013972,2]
[360956870,1747162251759,-403.77,0.00013972,2]
[360956871,1747162251768,-520.85,0.00013972,2]
[360956872,1747162251778,-400.0,0.00013972,2]
[360956873,1747162251789,-400.0,0.00013972,2]
[360956874,1747162251799,-400.0,0.00013972,2]
[360956875,1747162251809,-400.0,0.00013972,2]
[360956876,1747162251819,-300.0,0.00013972,2]
[360956877,1747162251829,-400.0,0.00013972,2]
[360956878,1747162251839,-677.97,0.00013972,2]
[360956879,1747162251850,-400.0,0.00013972,2]
[360956880,1747162251859,-413.43,0.00013972,2]
[360956881,1747162251869,-400.0,0.00013972,2]
[360956882,1747162251880,-400.0,0.00013972,2]
[360956883,1747162251892,-400.0,0.00013972,2]
[360956884,1747162251902,-292.8289,0.00013972,2]
[360956885,1747162251912,-292.8289,0.00013972,2]
[360956886,1747162251923,-400.0,0.00013972,2]
[360956887,1747162251933,-292.8289,0.00013972,2]
[360956888,1747162251943,-292.8289,0.00013972,2]
[360956889,1747162251953,-405.74,0.00013972,2]
[360956890,1747162251965,-400.0,0.00013972,2]
[360956891,1747162251974,-400.0,0.00013972,2]
[360956892,1747162251985,-400.0,0.00013972,2]
[360956893,1747162251995,-400.0,0.00013972,2]
[360956894,1747162252005,-400.0,0.00013972,2]
[360956895,1747162252015,-400.0,0.00013972,2]
[360956896,1747162252026,-400.0,0.00013972,2]
[360956897,1747162252036,-400.0,0.00013972,2]
[360956898,1747162252047,-400.0,0.00013972,2]
[360956899,1747162252058,-653.25,0.00013972,2]
[360956900,1747162252069,-672.78,0.00013972,2]
[360956901,1747162252079,-407.63,0.00013972,2]
[360956902,1747162252088,-491.65,0.00013972,2]
[360956903,1747162252099,-400.0,0.00013972,2]
[360956904,1747162252109,-400.0,0.00013972,2]
[360956905,1747162252119,-400.0,0.00013972,2]
[360956906,1747162252129,-761.96,0.00013972,2]
[360956907,1747162252139,-400.0,0.00013972,2]
[360956908,1747162252149,-400.0,0.00013972,2]
[360956909,1747162252159,-514.84,0.00013972,2]
[360956910,1747162252169,-400.0,0.00013972,2]
[360956911,1747162252179,-1080.65,0.00013972,2]
[360956912,1747162252188,-156.45264645,0.00013972,2]
[360956913,1747162252198,-400.0,0.00013972,2]
[360956914,1747162252208,-400.0,0.00013972,2]
[360956915,1747162252219,-151.0,0.00013972,2]
[360956916,1747162252229,-151.0,0.00013972,2]
[360956917,1747162252239,-151.0,0.00013972,2]
[360956918,1747162252249,-535.32,0.00013972,2]
[360956919,1747162252258,-400.0,0.00013972,2]
[360956920,1747162252269,-444.90967896,0.00013972,2]
[360956921,1747162252279,-400.0,0.00013972,2]
[360956922,1747162252289,-400.0,0.00013972,2]
[360956923,1747162252299,-324.89659329,0.00013972,2]
[360956924,1747162252309,-506.99,0.00013972,2]
[360956925,1747162252319,-400.0,0.00013972,2]
[360956926,1747162252330,-400.0,0.00013972,2]
[360956927,1747162252341,-400.0,0.00013972,2]
[360956928,1747162252351,-400.0,0.00013972,2]
[360956929,1747162252361,-400.0,0.00013972,2]
[360956930,1747162252371,-513.15,0.00013972,2]
[360956931,1747162252381,-546.96,0.00013972,2]
[360956932,1747162252391,-1162.94,0.00013972,2]
[360956933,1747162252402,-400.0,0.00013972,2]
[360956934,1747162252412,-400.0,0.00013972,2]
[360956935,1747162252421,-400.0,0.00013972,2]
[360956936,1747162252432,-2072.01,0.00013972,2]
[360956937,1747162252442,-400.0,0.00013972,2]
[360956938,1747162252452,-1141.47,0.00013972,2]
[360956939,1747162252461,-400.0,0.00013972,2]
[360956940,1747162252471,-206.11634837,0.00013972,2]
[360956941,1747162252481,-990.34,0.00013972,2]
[360956942,1747162252491,-400.0,0.00013972,2]
[360956943,1747162252503,-675.0,0.00013972,2]
[360956944,1747162252513,-1571.22,0.00013972,2]
[360956945,1747162252524,-400.0,0.00013972,2]
[360956946,1747162252534,-400.0,0.00013972,2]
[360956947,1747162252545,-400.0,0.00013972,2]
[360956948,1747162252556,-400.0,0.00013972,2]
[360956949,1747162252566,-400.0,0.00013972,2]
[360956950,1747162252576,-400.0,0.00013972,2]
[360956951,1747162252586,-480.19,0.00013972,2]
[360956952,1747162252597,-400.0,0.00013972,2]
[360956953,1747162252607,-400.0,0.00013972,2]
[360956954,1747162252617,-151.0,0.00013972,2]
[360956955,1747162252628,-151.0,0.00013972,2]
[360956956,1747162252638,-298.997562,0.00013972,2]
[360956957,1747162252647,-400.0,0.00013972,2]
[360956958,1747162252657,-2270.83,0.00013972,2]
[360956959,1747162252668,-502.75,0.00013972,2]
[360956960,1747162252678,-400.0,0.00013972,2]
[360956961,1747162252688,-400.0,0.00013972,2]
[360956962,1747162252698,-501.0,0.00013972,2]
[360956963,1747162252708,-499.97,0.00013972,2]
[360956964,1747162252719,-400.0,0.00013972,2]
[360956965,1747162252729,-490.01,0.00013972,2]
[360956966,1747162252740,-400.0,0.00013972,2]
[360956967,1747162252750,-400.0,0.00013972,2]
[360956968,1747162252761,-511.99,0.00013972,2]
[360956969,1747162252771,-400.0,0.00013972,2]
[360956970,1747162252781,-768.67,0.00013972,2]
[360956971,1747162252791,-400.0,0.00013972,2]
[360956972,1747162252802,-400.0,0.00013972,2]
[360956973,1747162252812,-400.0,0.00013972,2]
[360956974,1747162252821,-1141.07,0.00013972,2]
[360956975,1747162252831,-843.16,0.00013972,2]
[360956976,1747162252842,-400.0,0.00013972,2]
[360956977,1747162252852,-400.0,0.00013972,2]
[360956978,1747162252862,-400.0,0.00013972,2]
[360956979,1747162252873,-690.45,0.00013972,2]
[360956980,1747162252885,-519.47,0.00013972,2]
[360956981,1747162252896,-478.87,0.00013972,2]
[360956982,1747162252906,-400.0,0.00013972,2]
[360956983,1747162252917,-400.0,0.00013972,2]
[360956984,1747162252927,-400.0,0.00013972,2]
[360956985,1747162252938,-998.31,0.00013972,2]
[360956986,1747162252948,-400.0,0.00013972,2]
[360956987,1747162252957,-1196.75,0.00013972,2]
[360956988,1747162252969,-552.13,0.00013972,2]
[360956989,1747162252979,-778.19,0.00013972,2]
[360956990,1747162252991,-534.0,0.00013972,2]
[360956991,1747162253001,-400.0,0.00013972,2]
[360956992,1747162253011,-400.0,0.00013972,2]
[360956993,1747162253021,-400.0,0.00013972,2]
[360956994,1747162253031,-400.0,0.00013972,2]
[360956995,1747162253043,-353.641467,0.00013972,2]
[360956996,1747162253054,-353.641467,0.00013972,2]
[360956997,1747162253064,-353.641467,0.00013972,2]
[360956998,1747162253074,-400.0,0.00013972,2]
[360956999,1747162253085,-353.641467,0.00013972,2]
[360957000,1747162253094,-353.641467,0.00013972,2]
[360957001,1747162253104,-353.641467,0.00013972,2]
[360957002,1747162253115,-915.17,0.00013972,2]
[360957003,1747162253124,-400.0,0.00013972,2]
[360957004,1747162253134,-425.82,0.00013972,2]
[360957005,1747162253144,-400.0,0.00013972,2]
[360957006,1747162253155,-607.96,0.00013972,2]
[360957007,1747162253164,-695.67,0.00013972,2]
[360957008,1747162253174,-400.0,0.00013972,2]
[360957009,1747162253185,-400.0,0.00013972,2]
[360957010,1747162253196,-512.58,0.00013972,2]
[360957011,1747162253206,-400.0,0.00013972,2]
[360957012,1747162253216,-400.0,0.00013972,2]
[360957013,1747162253226,-1410.67,0.00013972,2]
[360957014,1747162253236,-400.0,0.00013972,2]
[360957015,1747162253248,-400.0,0.00013972,2]
[360957016,1747162253258,-484.32,0.00013972,2]
[360957017,1747162253268,-400.0,0.00013972,2]
[360957018,1747162253279,-669.5,0.00013972,2]